[Event "African-ch Open 2019"]
[Site "Hammamet"]
[Date "2019.07.11"]
[Round "3.1"]
[White "Amin, Bassem"]
[Black "Bellahcene, Bilel"]
[Result "0-1"]
[ECO "A04"]
[WhiteElo "2707"]
[BlackElo "2541"]
[Annotator "RC"]
[PlyCount "158"]
[EventDate "2019.07.09"]
[EventType "swiss"]
[EventCountry "TUN"]
[TimeControl "5400+30"]

1. e4 {[%emt 0:00:24]} e6 {[%emt 0:00:00]} 2. d3 {[%emt 0:01:23]} c5 {[%emt 0:00:00]} 3. g3 {[%emt 0:00:14]} Nc6 {[%emt 0:00:00]} 4. Bg2 {[%emt 0:00:05]} g6 {[%emt 0:00:18]} 5. Nf3 {[%emt 0:00:32]} Bg7 {[%emt 0:00:05]} 6. O-O {[%emt 0:00:11]} Nge7 {[%emt 0:00:02]} 7. c3 {[%emt 0:00:12]} O-O {[%emt 0:00:07]} 8. Re1 {[%emt 0:00:04]} e5 {[%emt 0:00:08]} 9. a3 {[%emt 0:00:07]} d6 {[%emt 0:00:04]} 10. b4 {[%emt 0:00:08]} a6 {[%emt 0:00:02]} 11. Nbd2 {[%emt 0:00:33]} Be6 {[%emt 0:00:49]} 12. Rb1 {[%emt 0:01:45]} h6 {[%emt 0:00:07]} 13. Nf1 {[%emt 0:05:11]} cxb4 {[%emt 0:05:41]} 14. axb4 {[%emt 0:01:11]} d5 {[%emt 0:00:09]} 15. Ne3 {[%emt 0:03:27]} d4 {[%emt 0:00:48]} 16. cxd4 {[%emt 0:00:34]} exd4 {[%emt 0:00:04]} 17. Nc4 {[%emt 0:02:18]} b5 {[%emt 0:14:09]} 18. Ncd2 {[%emt 0:02:33]} a5 {[%emt 0:02:36]} 19. bxa5 {[%emt 0:00:44]} Qxa5 {[%emt 0:01:58]} 20. h4 {[%emt 0:05:43]} Rfd8 {[%emt 0:09:34]} 21. Nb3 {[%emt 0:03:53]} Qb6 {[%emt 0:01:12]} 22. Bf4 {[%emt 0:00:41]} Ra3 {[%emt 0:02:43]} 23. Re2 {[%emt 0:03:33]} b4 {[%emt 0:09:41]} 24. Reb2 {[%emt 0:02:12]} Kh7 {[%emt 0:03:19]} 25. Ne1 {[%emt 0:07:48]} Qb5 {[%emt 0:09:34]} 26. Nc2 {[%emt 0:06:34]} Ra4 {[%emt 0:02:37]} 27. Nc1 {[%emt 0:00:24]} Ng8 {[%emt 0:02:09]} 28. h5 {[%emt 0:19:19]} g5 {[%emt 0:12:12]} 29. Bd2 {[%emt 0:00:09]} Bf8 {[%emt 0:00:08]} 30. f4 {[%emt 0:00:49]} gxf4 {[%emt 0:01:20]} 31. gxf4 {[%emt 0:00:08]} f5 {[%emt 0:01:06]} 32. e5 {[%emt 0:03:49]} Rd7 {[%emt 0:02:53]} 33. Kf2 {[%emt 0:01:42]} Rg7 {[%emt 0:01:57]} 34. Qh1 {[%emt 0:00:25]} Nxe5 {[%emt 0:09:02]} 35. fxe5 {[%emt 0:00:30]} Qxe5 {[%emt 0:00:03]} 36. Ne2 {[%emt 0:00:41]} b3 {[%emt 0:02:39]} 37. Ne1 {[%emt 0:04:37]} Ba3 {[%emt 0:02:44]} 38. Rxb3 {[%emt 0:04:54]} Bxb3 {[%emt 0:00:33]} 39. Rxb3 {[%emt 0:00:02]} Nf6 {[%emt 0:00:22]} 40. Bh3 {[%emt 0:00:00]} Bc5 {[%emt 0:00:00]} 41. Bf4 {[%emt 0:00:00]} Qe6 {[%emt 0:00:00]} 42. Rb7 {[%emt 0:00:00]} Ra2 {[%emt 0:00:00]} 43. Rxg7+ {[%emt 0:00:00]} Kxg7 {[%emt 0:00:00]} 44. Qg2+ {[%emt 0:00:00]} Kh8 {[%emt 0:00:00]} 45. Kf1 {[%emt 0:00:00]} Nxh5 {[%emt 0:00:00]} 46. Bh2 {[%emt 0:00:00]} Bb4 {[%emt 0:00:00]} 47. Qf2 {[%emt 0:04:37]} Bxe1 {[%emt 0:01:19]} 48. Qxd4+ {[%emt 0:01:27]} Kg8 {[%emt 0:01:58]} 49. Qe5 {[%emt 0:06:35]} Qxe5 {[%emt 0:01:01]} 50. Bxe5 {[%emt 0:00:01]} Ra5 {[%emt 0:00:44]} 51. d4 {[%emt 0:00:48]} Ra1 {[%emt 0:02:11]} 52. Kg2 {[%emt 0:02:03]} Ra2 {[%emt 0:00:39]} 53. Kf1 {[%emt 0:00:19]} Ra1 {[%emt 0:00:02]} 54. Kg2 {[%emt 0:00:07]} Ng7 {[%emt 0:00:18]} 55. Nf4 {[%emt 0:02:08]} Ra2+ {[%emt 0:00:10]} 56. Kf3 {[%emt 0:00:13]} Ra3+ {[%emt 0:00:25]} 57. Ke2 {[%emt 0:00:01]} Bg3 {[%emt 0:00:15]} 58. Bg2 {[%emt 0:00:02]} Bxf4 {[%emt 0:00:32]} 59. Bd5+ {[%emt 0:00:06]} Kh7 {[%emt 0:00:03]} 60. Bxf4 {[%emt 0:00:04]} Nh5 {[%emt 0:00:20]} 61. Bd6 {[%emt 0:00:28]} Rh3 {[%emt 0:01:13]} 62. Be5 {[%emt 0:01:49]} Kg6 {[%emt 0:00:26]} 63. Bf3 {[%emt 0:00:20]} Kg5 {[%emt 0:00:54]} 64. Kf2 {[%emt 0:01:19]} Nf4 {[%emt 0:00:35]} 65. Bd6 {[%emt 0:00:33]} h5 {[%emt 0:01:23]} 66. d5 {[%emt 0:00:59]} Rxf3+ {[%emt 0:02:43]} 67. Kxf3 {[%emt 0:00:02]} Nxd5 {[%emt 0:00:04]} 68. Bg3 {[%emt 0:01:17]} f4 {[%emt 0:00:34]} 69. Bh2 {[%emt 0:00:40]} Kf5 {[%emt 0:00:02]} 70. Bg1 {[%emt 0:00:15]} Ne7 {[%emt 0:00:11]} 71. Bb6 {[%emt 0:01:07]} Ng6 {[%emt 0:00:04]} 72. Bc7 {[%emt 0:00:07]} Nh4+ {[%emt 0:00:26]} 73. Kf2 {[%emt 0:00:06]} Kg4 {[%emt 0:00:13]} 74. Be5 {[%emt 0:00:20]} Nf3 {[%emt 0:00:36]} 75. Bc7 {[%emt 0:00:18]} h4 {[%emt 0:01:10]} 76. Kg2 {[%emt 0:00:13]} Nd2 {[%emt 0:00:14]} 77. Bb6 {[%emt 0:00:20]} Ne4 {[%emt 0:00:28]} 78. Bc7 {[%emt 0:00:53]} f3+ {[%emt 0:01:23]} 79. Kg1 {[%emt 0:00:24]} f2+ {[%emt 0:00:21]} 0-1

[Event "African-ch Open 2019"]
[Site "Hammamet"]
[Date "2019.07.12"]
[Round "4.1"]
[White "Adly, Ahmed"]
[Black "Bellahcene, Bilel"]
[Result "1-0"]
[ECO "E05"]
[WhiteElo "2618"]
[BlackElo "2541"]
[Annotator "ChessBase"]
[PlyCount "90"]
[EventDate "2019.07.09"]
[EventType "swiss"]
[EventCountry "TUN"]
[SourceTitle "playchess.com"]
[Source "ChessBase"]
[SourceQuality "1"]
[TimeControl "5400+30"]

1. d4 {[%emt 0:02:24]} e6 {[%emt 0:00:00]} 2. g3 {[%emt 0:00:22]} Nf6 {[%emt 0:00:00]} 3. Bg2 {[%emt 0:00:05]} d5 {[%emt 0:00:00]} 4. Nf3 {[%emt 0:00:05]} Be7 {[%emt 0:00:00]} 5. O-O {[%emt 0:00:06]} O-O {[%emt 0:00:00]} 6. c4 {[%emt 0:00:03]} dxc4 {[%emt 0:00:02]} 7. Ne5 {[%emt 0:00:05]} Nc6 {[%emt 0:00:09]} 8. Bxc6 {[%emt 0:00:04]} bxc6 {[%emt 0:00:04]} 9. Nxc6 {[%emt 0:00:10]} Qe8 {[%emt 0:00:02]} 10. Nxe7+ {[%emt 0:00:05]} Qxe7 {[%emt 0:00:02]} 11. Qc2 {[%emt 0:00:05]} e5 {[%emt 0:02:21]} 12. dxe5 {[%emt 0:00:07]} Qxe5 {[%emt 0:00:04]} 13. Bf4 {[%emt 0:00:06]} Qe6 {[%emt 0:06:46]} 14. Nc3 {[%emt 0:00:22]} Bb7 {[%emt 0:02:34]} 15. Rad1 {[%emt 0:01:42]} Rad8 {[%emt 0:15:30]} 16. Rxd8 {[%emt 0:05:52]} Rxd8 {[%emt 0:01:03]} 17. Rd1 {[%emt 0:00:02]} Rd7 {[%emt 0:04:40]} 18. Rxd7 {[%emt 0:05:14]} Nxd7 {[%emt 0:15:11]} 19. Qd2 {[%emt 0:08:26]} h6 {[%emt 0:02:55]} 20. Qe3 {[%emt 0:27:52]} Qb6 {[%emt 0:08:30]} 21. Qe8+ {[%emt 0:02:38]} Nf8 {[%emt 0:01:08]} 22. Bc1 {[%emt 0:00:33]} a6 {[%emt 0:13:54]} 23. h4 {[%emt 0:09:52]} f5 {[%emt 0:04:04]} 24. Kf1 {[%emt 0:05:44]} Qc6 {[%emt 0:04:21]} 25. Qxc6 Bxc6 {[%emt 0:00:02]} 26. Ke1 {[%emt 0:07:41]} Ne6 {[%emt 0:04:52]} 27. Be3 {[%emt 0:01:21]} g5 {[%emt 0:01:09]} 28. hxg5 {[%emt 0:00:06]} hxg5 {[%emt 0:00:01]} 29. f3 {[%emt 0:00:06]} Kf7 {[%emt 0:04:20]} 30. Kd2 {[%emt 0:00:37]} Ke7 {[%emt 0:04:29]} 31. Nb1 {[%emt 0:00:56]} Kd6 {[%emt 0:00:08]} 32. Kc3 {[%emt 0:00:08]} Bb5 {[%emt 0:01:01]} 33. Nd2 {[%emt 0:00:55]} Kd5 {[%emt 0:00:04]} 34. Nb1 {[%emt 0:05:11]} c5 {[%emt 0:01:13]} 35. Kd2 {[%emt 0:00:19]} Bc6 {[%emt 0:01:13]} 36. Nc3+ {[%emt 0:00:19]} Kd6 {[%emt 0:00:06]} 37. Bg1 {[%emt 0:00:17]} Ke5 {[%emt 0:01:15]} 38. Nd1 {[%emt 0:00:44]} Bb5 {[%emt 0:01:07]} 39. Be3 {[%emt 0:00:35]} Kd5 {[%emt 0:01:57]} 40. Ke1 {[%emt 0:00:00]} Kd6 {[%emt 0:00:00]} 41. Bd2 {[%emt 0:00:00]} f4 {[%emt 0:00:00]} 42. g4 {[%emt 0:00:00]} Bc6 {[%emt 0:00:00]} 43. Ba5 {[%emt 0:00:00]} Ke5 {[%emt 0:00:00]} 44. Kd2 {[%emt 0:00:00]} Kf6 {[%emt 0:00:00]} 45. Nf2 {[%emt 0:00:00]} Ke5 1-0

[Event "African-ch Open 2019"]
[Site "Hammamet"]
[Date "2019.07.12"]
[Round "4.2"]
[White "Kayonde, Andrew"]
[Black "Rakotomaharo, Fy Antenaina"]
[Result "1/2-1/2"]
[ECO "A47"]
[WhiteElo "2382"]
[BlackElo "2419"]
[Annotator "ChessBase"]
[PlyCount "94"]
[EventDate "2019.07.09"]
[EventType "swiss"]
[EventCountry "TUN"]
[SourceTitle "playchess.com"]
[Source "ChessBase"]
[SourceQuality "1"]
[TimeControl "5400+30"]

1. d4 {[%emt 0:00:13]} e6 {[%emt 0:00:00]} 2. Bf4 {[%emt 0:02:04]} Nf6 {[%emt 0:01:10]} 3. e3 {[%emt 0:00:27]} b6 {[%emt 0:00:22]} 4. Nf3 {[%emt 0:00:46]} Bb7 {[%emt 0:00:23]} 5. Bd3 {[%emt 0:01:19]} Bd6 {[%emt 0:01:33]} 6. Bg3 {[%emt 0:01:29]} Bxg3 {[%emt 0:01:37]} 7. hxg3 {[%emt 0:00:10]} d6 {[%emt 0:00:35]} 8. Nbd2 {[%emt 0:11:26]} Nbd7 {[%emt 0:01:56]} 9. c3 {[%emt 0:03:37]} Qe7 {[%emt 0:02:32]} 10. Qe2 {[%emt 0:00:09]} a6 {[%emt 0:00:35]} 11. e4 {[%emt 0:04:51]} e5 {[%emt 0:00:41]} 12. d5 {[%emt 0:02:26]} Nc5 {[%emt 0:05:51]} 13. b4 {[%emt 0:03:19]} Nxd3+ {[%emt 0:01:12]} 14. Qxd3 {[%emt 0:00:17]} a5 {[%emt 0:00:03]} 15. O-O {[%emt 0:01:05]} O-O {[%emt 0:02:26]} 16. a3 {[%emt 0:01:47]} g6 {[%emt 0:06:28]} 17. c4 {[%emt 0:13:30]} Ng4 {[%emt 0:02:13]} 18. Rfe1 {[%emt 0:12:37]} f5 {[%emt 0:26:54]} 19. Rac1 {[%emt 0:03:01]} axb4 {[%emt 0:04:39]} 20. axb4 {[%emt 0:00:05]} Ra4 {[%emt 0:00:02]} 21. Ra1 {[%emt 0:00:34]} Qd7 {[%emt 0:04:16]} 22. b5 {[%emt 0:09:54]} Rxa1 {[%emt 0:01:05]} 23. Rxa1 {[%emt 0:00:02]} Qg7 {[%emt 0:00:07]} 24. Ra7 {[%emt 0:00:58]} Bc8 {[%emt 0:01:04]} 25. c5 {[%emt 0:08:13]} Qh6 {[%emt 0:09:47]} 26. Nf1 {[%emt 0:09:29]} fxe4 {[%emt 0:04:35]} 27. Qxe4 {[%emt 0:00:07]} Qh1+ {[%emt 0:00:02]} 28. Kxh1 {[%emt 0:00:21]} Nxf2+ {[%emt 0:00:02]} 29. Kh2 {[%emt 0:01:24]} Nxe4 {[%emt 0:00:06]} 30. Rxc7 {[%emt 0:01:38]} Nxc5 {[%emt 0:00:58]} 31. Ne3 {[%emt 0:00:22]} Bd7 {[%emt 0:02:33]} 32. Nc4 {[%emt 0:00:17]} Rf6 {[%emt 0:00:02]} 33. Rc6 {[%emt 0:03:12]} Bxc6 {[%emt 0:09:13]} 34. dxc6 {[%emt 0:00:07]} Ne6 {[%emt 0:00:03]} 35. Nxb6 {[%emt 0:00:09]} Nc7 {[%emt 0:00:06]} 36. Nd7 {[%emt 0:01:34]} Rxf3 {[%emt 0:00:16]} 37. gxf3 {[%emt 0:01:43]} Nxb5 {[%emt 0:00:04]} 38. Nf6+ {[%emt 0:00:13]} Kf7 {[%emt 0:01:23]} 39. Nxh7 {[%emt 0:00:05]} d5 {[%emt 0:01:33]} 40. Kg2 {[%emt 0:00:00]} Nc7 {[%emt 0:00:00]} 41. Kf2 {[%emt 0:00:00]} Ke7 {[%emt 0:00:00]} 42. Ke3 {[%emt 0:00:00]} Ne6 {[%emt 0:00:00]} 43. f4 {[%emt 0:00:00]} exf4+ {[%emt 0:00:00]} 44. gxf4 {[%emt 0:00:00]} Kd6 {[%emt 0:00:00]} 45. Nf6 {[%emt 0:00:00]} Kxc6 {[%emt 0:00:00]} 46. Ng4 {[%emt 0:00:00]} Kd6 {[%emt 0:00:00]} 47. Ne5 {[%emt 0:00:00]} Nf8 {[%emt 0:00:00]} 1/2-1/2

[Event "African-ch Open 2019"]
[Site "Hammamet"]
[Date "2019.07.12"]
[Round "4.5"]
[White "Degondo, Simplice Armel"]
[Black "Arab, Adlane"]
[Result "0-1"]
[ECO "B61"]
[WhiteElo "2115"]
[BlackElo "2479"]
[Annotator "ChessBase"]
[PlyCount "98"]
[EventDate "2019.07.09"]
[EventType "swiss"]
[EventCountry "TUN"]
[SourceTitle "playchess.com"]
[Source "ChessBase"]
[SourceQuality "1"]
[TimeControl "5400+30"]

1. e4 {[%emt 0:00:00]} c5 {[%emt 0:00:00]} 2. Nf3 {[%emt 0:00:00]} Nc6 {[%emt 0:00:00]} 3. d4 {[%emt 0:00:00]} cxd4 {[%emt 0:00:00]} 4. Nxd4 {[%emt 0:00:00]} Nf6 {[%emt 0:00:15]} 5. Nc3 {[%emt 0:00:00]} d6 {[%emt 0:00:10]} 6. Bg5 {[%emt 0:00:08]} Bd7 {[%emt 0:00:26]} 7. Qd2 {[%emt 0:00:26]} Rc8 {[%emt 0:00:39]} 8. f3 {[%emt 0:01:41]} h6 {[%emt 0:03:45]} 9. Be3 {[%emt 0:01:06]} a6 {[%emt 0:00:26]} 10. O-O-O {[%emt 0:01:09]} Nxd4 {[%emt 0:04:35]} 11. Bxd4 {[%emt 0:00:00]} e5 {[%emt 0:00:10]} 12. Be3 {[%emt 0:00:42]} Be7 {[%emt 0:00:08]} 13. g4 {[%emt 0:02:48]} Qc7 {[%emt 0:01:07]} 14. h4 {[%emt 0:02:27]} Be6 {[%emt 0:01:05]} 15. g5 {[%emt 0:12:22]} hxg5 {[%emt 0:04:21]} 16. hxg5 {[%emt 0:00:03]} Rxh1 {[%emt 0:00:42]} 17. gxf6 {[%emt 0:00:02]} Rxf1 {[%emt 0:00:40]} 18. Rxf1 {[%emt 0:00:03]} Bxf6 {[%emt 0:00:12]} 19. Rd1 {[%emt 0:05:41]} Be7 {[%emt 0:01:16]} 20. Bg5 {[%emt 0:08:31]} Bf8 {[%emt 0:06:41]} 21. f4 {[%emt 0:03:31]} f6 {[%emt 0:00:07]} 22. f5 {[%emt 0:01:13]} Bf7 {[%emt 0:00:09]} 23. Be3 {[%emt 0:00:23]} Qc4 {[%emt 0:00:28]} 24. Qd3 {[%emt 0:04:50]} Qxd3 {[%emt 0:05:57]} 25. Rxd3 {[%emt 0:00:03]} g6 {[%emt 0:00:26]} 26. b3 {[%emt 0:10:46]} gxf5 {[%emt 0:09:00]} 27. exf5 {[%emt 0:00:02]} Be7 {[%emt 0:00:11]} 28. Kd2 {[%emt 0:02:57]} b5 {[%emt 0:04:45]} 29. Nd5 {[%emt 0:01:01]} Bxd5 {[%emt 0:01:24]} 30. Rxd5 {[%emt 0:00:02]} Kd7 {[%emt 0:00:08]} 31. Kd3 {[%emt 0:01:02]} Kc6 {[%emt 0:00:26]} 32. c4 {[%emt 0:00:30]} Rh8 {[%emt 0:01:52]} 33. a4 {[%emt 0:02:33]} bxc4+ {[%emt 0:00:27]} 34. bxc4 {[%emt 0:00:06]} Bd8 {[%emt 0:00:16]} 35. a5 {[%emt 0:00:51]} Rh5 {[%emt 0:02:06]} 36. Ke4 {[%emt 0:00:15]} Rh4+ {[%emt 0:00:05]} 37. Kd3 {[%emt 0:00:21]} Bc7 {[%emt 0:00:09]} 38. Bb6 {[%emt 0:00:52]} Bxb6 {[%emt 0:02:38]} 39. axb6 {[%emt 0:00:02]} Rd4+ {[%emt 0:00:44]} 40. Rxd4 {[%emt 0:00:00]} exd4 {[%emt 0:00:00]} 41. Kxd4 {[%emt 0:00:00]} a5 {[%emt 0:00:00]} 42. b7 {[%emt 0:00:00]} Kxb7 {[%emt 0:00:00]} 43. Kd5 {[%emt 0:00:00]} a4 {[%emt 0:00:00]} 44. Kxd6 {[%emt 0:00:00]} a3 {[%emt 0:00:00]} 45. Kd7 {[%emt 0:00:00]} a2 {[%emt 0:00:00]} 46. c5 {[%emt 0:00:00]} a1=Q {[%emt 0:00:00]} 47. c6+ {[%emt 0:00:00]} Kb6 {[%emt 0:00:00]} 48. c7 {[%emt 0:00:00]} Qd4+ {[%emt 0:00:00]} 49. Kc8 {[%emt 0:00:00]} Qd5 {[%emt 0:00:00]} 0-1

[Event "African-ch Open 2019"]
[Site "Hammamet"]
[Date "2019.07.13"]
[Round "5.2"]
[White "Hamdouchi, Hicham"]
[Black "Fawzy, Adham"]
[Result "0-1"]
[ECO "B23"]
[WhiteElo "2575"]
[BlackElo "2476"]
[Annotator "ChessBase"]
[PlyCount "104"]
[EventDate "2019.07.09"]
[EventType "swiss"]
[EventCountry "TUN"]
[SourceTitle "playchess.com"]
[Source "ChessBase"]
[SourceQuality "1"]
[TimeControl "5400+30"]

1. e4 {[%emt 0:00:00]} c5 {[%emt 0:00:05]} 2. Nc3 {[%emt 0:00:00]} Nc6 {[%emt 0:00:20]} 3. Bb5 {[%emt 0:00:19]} Nd4 {[%emt 0:00:12]} 4. Bc4 {[%emt 0:00:41]} a6 {[%emt 0:00:06]} 5. Nf3 {[%emt 0:04:11]} b5 {[%emt 0:00:33]} 6. Bd5 {[%emt 0:00:21]} Rb8 {[%emt 0:00:11]} 7. Nxd4 {[%emt 0:04:01]} cxd4 {[%emt 0:00:03]} 8. Ne2 {[%emt 0:00:07]} Nf6 {[%emt 0:00:15]} 9. Nxd4 {[%emt 0:06:45]} e6 {[%emt 0:01:47]} 10. Bb3 {[%emt 0:00:12]} Nxe4 {[%emt 0:00:08]} 11. O-O {[%emt 0:00:54]} Bd6 {[%emt 0:11:48]} 12. Qg4 {[%emt 0:09:54]} Nf6 {[%emt 0:02:26]} 13. Qh3 {[%emt 0:02:02]} h5 {[%emt 0:05:39]} 14. Nf3 {[%emt 0:01:26]} Bb7 {[%emt 0:03:13]} 15. d4 {[%emt 0:02:56]} Qc7 {[%emt 0:05:06]} 16. Ne5 {[%emt 0:10:14]} Bxe5 {[%emt 0:03:05]} 17. dxe5 {[%emt 0:01:06]} Qxe5 {[%emt 0:00:43]} 18. Bd2 {[%emt 0:00:07]} Ne4 {[%emt 0:04:01]} 19. Rae1 {[%emt 0:05:40]} Qxb2 {[%emt 0:12:10]} 20. Bb4 {[%emt 0:02:08]} Qe5 {[%emt 0:12:37]} 21. Qd3 {[%emt 0:08:15]} a5 {[%emt 0:04:18]} 22. Bxa5 {[%emt 0:00:43]} Qc5 {[%emt 0:00:50]} 23. c3 {[%emt 0:18:50]} Qc6 {[%emt 0:00:14]} 24. Bb4 {[%emt 0:00:18]} d6 {[%emt 0:05:18]} 25. f3 {[%emt 0:09:04]} Nc5 {[%emt 0:00:05]} 26. Qd4 {[%emt 0:00:34]} O-O {[%emt 0:00:07]} 27. Bc2 {[%emt 0:01:12]} Qd5 {[%emt 0:04:44]} 28. Qf2 {[%emt 0:00:23]} Qg5 {[%emt 0:01:59]} 29. Rd1 {[%emt 0:03:01]} Bd5 {[%emt 0:02:09]} 30. Bb1 {[%emt 0:02:06]} f5 {[%emt 0:01:21]} 31. Bxc5 {[%emt 0:04:00]} dxc5 {[%emt 0:00:01]} 32. Qxc5 {[%emt 0:00:03]} Rbc8 {[%emt 0:03:19]} 33. Qd4 {[%emt 0:01:39]} Bxf3 {[%emt 0:01:02]} 34. Qd2 {[%emt 0:01:09]} Qxd2 {[%emt 0:04:50]} 35. Rxd2 {[%emt 0:00:01]} Bb7 {[%emt 0:00:37]} 36. Bc2 {[%emt 0:02:14]} Rxc3 {[%emt 0:02:56]} 37. Bb3 {[%emt 0:00:02]} Rf6 {[%emt 0:00:20]} 38. Re1 {[%emt 0:00:49]} Be4 {[%emt 0:00:41]} 39. Kf2 {[%emt 0:01:26]} Rg6 {[%emt 0:04:44]} 40. Rg1 {[%emt 0:00:00]} Kh7 {[%emt 0:00:00]} 41. Rd8 {[%emt 0:00:00]} h4 {[%emt 0:00:00]} 42. Re8 {[%emt 0:00:00]} Rd3 {[%emt 0:00:00]} 43. Bxe6 {[%emt 0:00:00]} Rd2+ {[%emt 0:00:00]} 44. Ke3 {[%emt 0:00:00]} Rgxg2 {[%emt 0:00:00]} 45. Rxg2 {[%emt 0:00:00]} Rxg2 {[%emt 0:00:00]} 46. Kf4 {[%emt 0:00:00]} Kg6 {[%emt 0:00:00]} 47. h3 {[%emt 0:00:00]} Kf6 {[%emt 0:00:00]} 48. Bc8 {[%emt 0:00:00]} Rf2+ {[%emt 0:00:00]} 49. Ke3 {[%emt 0:00:00]} Rf3+ {[%emt 0:00:00]} 50. Kd4 {[%emt 0:00:00]} Rd3+ {[%emt 0:00:00]} 51. Kc5 {[%emt 0:00:00]} Rxh3 {[%emt 0:00:00]} 52. Kxb5 {[%emt 0:00:00]} Rh1 {[%emt 0:00:00]} 0-1

[Event "African-ch Open 2019"]
[Site "Hammamet"]
[Date "2019.07.13"]
[Round "5.3"]
[White "Bellahcene, Bilel"]
[Black "Kayonde, Andrew"]
[Result "1-0"]
[ECO "B13"]
[WhiteElo "2541"]
[BlackElo "2382"]
[Annotator "ChessBase"]
[PlyCount "137"]
[EventDate "2019.07.09"]
[EventType "swiss"]
[EventCountry "TUN"]
[SourceTitle "playchess.com"]
[Source "ChessBase"]
[SourceQuality "1"]
[TimeControl "5400+30"]

1. e4 {[%emt 0:03:39]} c6 {[%emt 0:00:00]} 2. d4 {[%emt 0:00:05]} d5 {[%emt 0:00:20]} 3. exd5 {[%emt 0:00:03]} cxd5 {[%emt 0:00:52]} 4. Nf3 {[%emt 0:00:03]} Nf6 {[%emt 0:00:39]} 5. Ne5 {[%emt 0:00:05]} g6 {[%emt 0:00:34]} 6. Bb5+ {[%emt 0:00:04]} Nbd7 {[%emt 0:00:28]} 7. O-O {[%emt 0:00:05]} Bg7 {[%emt 0:00:12]} 8. Re1 {[%emt 0:00:02]} O-O {[%emt 0:00:20]} 9. Nf3 {[%emt 0:00:02]} a6 {[%emt 0:02:53]} 10. Bf1 {[%emt 0:00:39]} Nb8 {[%emt 0:00:53]} 11. c3 {[%emt 0:05:35]} Bg4 {[%emt 0:00:30]} 12. Nbd2 {[%emt 0:00:21]} Nc6 {[%emt 0:00:47]} 13. h3 {[%emt 0:00:01]} Bxf3 {[%emt 0:00:33]} 14. Nxf3 {[%emt 0:00:08]} Qc7 {[%emt 0:09:53]} 15. g3 {[%emt 0:04:31]} e6 {[%emt 0:03:10]} 16. Bf4 {[%emt 0:00:33]} Qd7 {[%emt 0:00:33]} 17. Bd3 {[%emt 0:01:33]} b5 {[%emt 0:01:45]} 18. Qe2 {[%emt 0:01:49]} Qb7 {[%emt 0:00:24]} 19. a3 {[%emt 0:02:49]} Rfe8 {[%emt 0:01:03]} 20. Kh2 {[%emt 0:06:41]} Nd7 {[%emt 0:04:04]} 21. Rad1 {[%emt 0:05:46]} f6 {[%emt 0:26:47]} 22. Bb1 {[%emt 0:00:29]} Na5 {[%emt 0:00:55]} 23. Bc1 {[%emt 0:18:28]} Nc4 {[%emt 0:02:52]} 24. h4 {[%emt 0:10:27]} a5 {[%emt 0:01:19]} 25. h5 {[%emt 0:09:04]} g5 {[%emt 0:00:59]} 26. Nd2 {[%emt 0:05:07]} Nxd2 {[%emt 0:11:14]} 27. Bxd2 {[%emt 0:00:48]} Bh6 {[%emt 0:00:28]} 28. Qd3 {[%emt 0:06:08]} Nf8 {[%emt 0:00:11]} 29. Re2 {[%emt 0:00:34]} Qf7 {[%emt 0:03:28]} 30. Qf3 {[%emt 0:00:47]} f5 {[%emt 0:03:54]} 31. g4 {[%emt 0:01:53]} f4 {[%emt 0:00:10]} 32. Qd3 {[%emt 0:01:33]} Rab8 {[%emt 0:00:21]} 33. b3 {[%emt 0:00:15]} Nd7 {[%emt 0:05:26]} 34. Rde1 {[%emt 0:01:18]} Rb7 {[%emt 0:10:29]} 35. f3 {[%emt 0:01:32]} Nb6 {[%emt 0:04:02]} 36. Qxb5 {[%emt 0:07:07]} a4 {[%emt 0:00:41]} 37. Bf5 {[%emt 0:01:01]} Nc4 {[%emt 0:00:45]} 38. Qxa4 {[%emt 0:06:37]} Ne3 {[%emt 0:01:42]} 39. Bb1 {[%emt 0:00:55]} Bf8 {[%emt 0:02:06]} 40. b4 {[%emt 0:00:00]} Bd6 {[%emt 0:00:00]} 41. Kh3 {[%emt 0:00:00]} Rf8 {[%emt 0:00:00]} 42. Qb3 {[%emt 0:00:00]} Qe8 {[%emt 0:00:00]} 43. Bd3 {[%emt 0:00:00]} Rf6 {[%emt 0:00:00]} 44. Bxe3 {[%emt 0:00:00]} fxe3 {[%emt 0:00:00]} 45. Rxe3 {[%emt 0:00:00]} Rbf7 {[%emt 0:00:00]} 46. Kg2 {[%emt 0:00:00]} Bf4 {[%emt 0:00:00]} 47. Qxd5 {[%emt 0:00:00]} Bxe3 {[%emt 0:00:00]} 48. Rxe3 {[%emt 0:00:00]} exd5 {[%emt 0:00:00]} 49. Rxe8+ {[%emt 0:00:00]} Kg7 {[%emt 0:00:00]} 50. Be2 {[%emt 0:00:00]} Ra7 {[%emt 0:00:00]} 51. Re5 {[%emt 0:00:00]} h6 {[%emt 0:00:00]} 52. Rxd5 {[%emt 0:00:00]} Rxa3 {[%emt 0:00:00]} 53. c4 {[%emt 0:00:00]} Re6 {[%emt 0:00:00]} 54. Kf2 {[%emt 0:00:00]} Rb3 {[%emt 0:00:00]} 55. b5 {[%emt 0:00:28]} Rc3 {[%emt 0:02:27]} 56. Rf5 {[%emt 0:04:22]} Rce3 {[%emt 0:00:40]} 57. Re5 {[%emt 0:00:35]} R3xe5 {[%emt 0:00:48]} 58. dxe5 {[%emt 0:00:01]} Rxe5 {[%emt 0:00:07]} 59. Bd3 {[%emt 0:00:08]} Kf6 {[%emt 0:00:11]} 60. Be4 {[%emt 0:00:09]} Ke6 {[%emt 0:00:14]} 61. Ke3 {[%emt 0:00:08]} Kd6 {[%emt 0:00:26]} 62. Kd4 {[%emt 0:00:04]} Rc5 {[%emt 0:00:16]} 63. b6 {[%emt 0:00:04]} Ra5 {[%emt 0:00:25]} 64. b7 {[%emt 0:00:06]} Kc7 {[%emt 0:00:09]} 65. Bd5 {[%emt 0:00:25]} Ra6 {[%emt 0:00:48]} 66. Ke5 {[%emt 0:00:03]} Rb6 {[%emt 0:00:29]} 67. Kf5 {[%emt 0:00:23]} Ra6 {[%emt 0:00:27]} 68. f4 {[%emt 0:00:22]} gxf4 {[%emt 0:00:16]} 69. g5 {[%emt 0:00:19]} 1-0